{"text_format":"1","workbook":"xlsx","n_sheets":7,"sheets":["1. Liga","Junioren_2. Liga","Jugend_Schüler A","Schüler B","Schüler C","Meldungen","gelb_rote Karten"],"not_rendered":{"charts":0,"images":0,"macros":0,"external_links":0,"defined_names":3,"comments":0,"pivot_tables":0},"unopened":[],"bounds":{"document_bytes":16777216,"sheet_cells":100000,"rows_first":2000,"rows_last":500,"rows_between":2000,"halvings":0,"cell_chars":16384,"cell_head_chars":4096},"cells_cut":0,"cells_raw":0,"read":"whole","date_system":"1900"}

{"sheet":"1. Liga","index":0,"n_rows":36,"n_cols":24,"rows_kept":36,"cut":false,"hidden":false,"merged":[[35,0,35,23],[30,1,30,6],[30,9,30,18],[31,0,31,6],[31,9,31,18],[32,9,32,18],[33,0,33,6],[33,9,33,18],[32,0,32,6],[23,9,23,10],[23,11,23,12],[23,13,23,14],[23,15,23,16],[23,17,23,18],[17,13,17,14],[17,15,17,16],[17,17,17,18],[1,8,1,18],[1,20,1,21],[2,9,2,18],[3,9,3,18],[4,9,4,18],[25,9,25,23],[26,9,26,23],[28,8,28,18],[29,9,29,18],[1,1,1,6],[4,1,4,6],[5,1,5,6],[6,1,6,6],[7,1,7,2],[7,3,7,6],[6,9,6,18],[2,1,2,6],[3,1,3,6],[5,9,5,18],[17,9,17,10],[17,11,17,12]]}
[]
["Bewerb:","Vorarlberger Meisterschaft 2016",null,null,null,null,null,null,"Mannschaften"]
["Veranstalter:","VLRV Vorarlberg",null,null,null,null,null,null,"Höchst 1","Patrick Schnetzer /Markus Bröll",null,null,null,null,null,null,null,null,null,12,26,7,null,"1."]
["Ausrichter:","RC Höchst",null,null,null,null,null,null,"Höchst 2","Simon König / Florian Fischer",null,null,null,null,null,null,null,null,null,9,24,5,null,"2."]
["Spielort:","Rheinauhalle",null,null,null,null,null,null,"Höchst 3","Fabian Bauer /Simon Schlegl",null,null,null,null,null,null,null,null,null,0,5,33,null,"5."]
["Termin","Sonntag 17. April",null,null,null,null,null,null,"Dornbirn 1","Lingg Martin / Daniel König",null,null,null,null,null,null,null,null,null,3,10,17,null,"4."]
["Beginn:","10:30 - 13:30 Uhr",null,null,null,null,null,null,"Sulz / D'birn","Kevin Bachmann / Stefan Feurstein ",null,null,null,null,null,null,null,null,null,6,13,16,null,"3."]
["Kategorie:","1. Liga",null,"1. Runde"]
[]
[null,"Mannschaft","  ","Mannschaft",null,null,null,null,"Mannschaft",1,2,3,4,5,6,7,8,9,10,"Pkt."]
["Spiel 1","Höchst 1",":","Höchst 3",10,":",3,null,"Höchst 1",3,null,null,3,null,null,3,null,null,3,12]
["Spiel 2","Höchst 2",":","Dornbirn 1",9,":",1,null,"Höchst 2",null,3,null,null,3,null,null,3,null,0,9]
["Spiel 3","Sulz / D'birn",":","Höchst 3",8,":",1,null,"Dornbirn 1",null,0,null,0,null,3,null,null,0,null,3]
["Spiel 4","Höchst 1",":","Dornbirn 1",5,":",1,null,"Sulz / D'birn",null,null,3,null,0,null,0,null,3,null,6]
["Spiel 5","Höchst 2",":","Sulz / D'birn",7,":",1,null,"Höchst 3",0,null,0,null,null,0,null,0,null,null,0]
["Spiel 6","Dornbirn 1",":","Höchst 3",8,":",1]
["Spiel 7","Höchst 1",":","Sulz / D'birn",8,":",2,null,null,"Team 1",null,"Team 2",null,"Team 3",null,"Team 4",null,"Team 5"]
["Spiel 8","Höchst 2",":","Höchst 3",7,":",0,null,null,"Höch 1",null,"Höch 2",null,"D'birn 1",null,"Su/Do",null,"Höch 3"]
["Spiel 9","Dornbirn 1",":","Sulz / D'birn",0,":",2,null,"1. Spiel",10,3,9,1,1,9,8,1,3,10]
["Spiel 10","Höchst 1",":","Höchst 2",3,":",1,null,"2. Spiel",5,1,7,1,1,5,1,7,1,8]
[null,null,null,null,null,null,null,null,"3. Spiel",8,2,7,0,8,1,2,8,1,8]
[null,null,null,null,null,null,null,null,"4. Spiel",3,1,1,3,0,2,2,0,0,7]
[null,null,null,null,null,null,null,null,"Tore/Total",26,7,24,5,10,17,13,16,5,33]
[null,null,null,null,null,null,null,null,"Differenz",19,null,19,null,-7,null,-3,null,-28]
[]
[null,null,null,null,null,null,null,null,"Zeitnehmer","Johann Thaler"]
[null,null,null,null,null,null,null,null,"Kommisär","Kamil Rutkowski, Michael Greussing"]
[]
[null,null,null,null,null,null,null,null,"Endstand LM 2016",null,null,null,null,null,null,null,null,null,null,"Pkt.","Tore",null,"TDF","Rg."]
[null,null,null,null,null,null,null,null,"Höchst 1","Patrick Schnetzer /Markus Bröll",null,null,null,null,null,null,null,null,null,12,26,7,19,"1."]
["Vorkommnisse","2 x 7 Minuten Spielzeit",null,null,null,null,null,null,"Höchst 2","Simon König / Florian Fischer",null,null,null,null,null,null,null,null,null,9,24,5,19,"2."]
["Gelbe Karte für Daniel König (grobes Foulspiel)",null,null,null,null,null,null,null,"Sulz / D'birn","Kevin Bachmann / Stefan Feurstein ",null,null,null,null,null,null,null,null,null,6,13,16,-3,"3."]
[null,null,null,null,null,null,null,null,"Dornbirn 1","Lingg Martin / Daniel König",null,null,null,null,null,null,null,null,null,3,10,17,-7,"4."]
[null,null,null,null,null,null,null,null,"Höchst 3","Fabian Bauer /Simon Schlegl",null,null,null,null,null,null,null,null,null,0,5,33,-28,"5."]
[]
["Es gibt nur eine Finalrunde, kein Auf- oder Abstieg 2016"]

{"sheet":"Junioren_2. Liga","index":1,"n_rows":110,"n_cols":28,"rows_kept":110,"cut":false,"hidden":false,"merged":[[109,0,109,6],[109,9,109,22],[109,23,109,24],[109,27,109,28],[107,0,107,6],[107,9,107,22],[107,23,107,24],[107,27,107,28],[108,0,108,6],[108,9,108,22],[108,23,108,24],[108,27,108,28],[101,9,101,28],[102,9,102,28],[106,9,106,22],[106,23,106,24],[106,27,106,28],[93,9,93,10],[93,11,93,12],[93,13,93,14],[93,15,93,16],[98,9,98,10],[98,11,98,12],[98,13,98,14],[98,15,98,16],[83,27,83,28],[84,1,84,6],[84,9,84,22],[84,23,84,24],[84,27,84,28],[81,27,81,28],[82,1,82,6],[82,9,82,22],[82,23,82,24],[82,27,82,28],[80,1,80,6],[80,7,92,7],[81,1,81,6],[81,9,81,22],[81,23,81,24],[83,1,83,6],[83,9,83,22],[83,23,83,24],[85,1,85,6],[86,1,86,2],[86,3,86,6],[86,15,86,16],[87,15,87,16],[88,15,88,16],[89,15,89,16],[90,15,90,16],[45,23,45,24],[45,27,45,28],[42,23,42,24],[42,27,42,28],[43,23,43,24],[43,27,43,28],[44,23,44,24],[44,27,44,28],[69,0,69,6],[69,9,69,22],[69,23,69,24],[69,27,69,28],[59,9,59,10],[59,11,59,12],[59,13,59,14],[59,15,59,16],[62,9,62,28],[50,15,50,16],[51,15,51,16],[54,9,54,10],[54,11,54,12],[54,13,54,14],[54,15,54,16],[70,0,70,6],[70,9,70,22],[70,23,70,24],[70,27,70,28],[63,9,63,28],[67,9,67,22],[67,23,67,24],[67,27,67,28],[68,0,68,6],[68,9,68,22],[68,23,68,24],[68,27,68,28],[41,1,41,6],[41,7,53,7],[42,1,42,6],[42,9,42,22],[43,1,43,6],[43,9,43,22],[44,1,44,6],[44,9,44,22],[45,1,45,6],[45,9,45,22],[46,1,46,6],[47,1,47,2],[47,3,47,6],[47,15,47,16],[48,15,48,16],[49,15,49,16],[31,9,31,22],[23,9,23,28],[24,9,24,28],[28,9,28,22],[29,9,29,22],[30,9,30,22],[28,27,28,28],[28,23,28,24],[20,9,20,10],[20,11,20,12],[9,15,9,16],[10,15,10,16],[11,15,11,16],[12,15,12,16],[20,13,20,14],[20,15,20,16],[15,9,15,10],[15,11,15,12],[15,13,15,14],[15,15,15,16],[31,0,31,6],[31,23,31,24],[31,27,31,28],[3,9,3,22],[5,9,5,22],[3,1,3,6],[2,7,14,7],[2,8,2,22],[6,1,6,6],[6,9,6,22],[4,9,4,22],[2,1,2,6],[4,1,4,6],[5,1,5,6],[7,1,7,6],[8,1,8,2],[29,0,29,6],[29,23,29,24],[29,27,29,28],[30,0,30,6],[30,23,30,24],[30,27,30,28],[8,3,8,6],[8,15,8,16]]}
[]
[]
["Bewerb:","Vorarlberger Meisterschaft 2016",null,null,null,null,null,null,"Mannschaften 2. Liga / Junioren"]
["Veranstalter:","VLRV Vorarlberg",null,null,null,null,null,null,"Sulz / D'birn","Jonas Hron / Benjamin Buchhäusl"]
["Ausrichter:","RV Dornbirn",null,null,null,null,null,null,"Höchst 4","Tobias Meier / Simon Kaufmann"]
["Spielort:","Bunker Haselstauden",null,null,null,null,null,null,"Dornbirn 2","Simon Buchhäusl / Robert Rutkowski"]
["Termin","Samstag 12. März",null,null,null,null,null,null,"Dornbirn 3","Maximilian Schwendinger / Bastian Arnoldi"]
["Beginn:","16:00 - 19:00 Uhr"]
["Kategorie:","Junior./2. Liga",null,"1. Runde",null,null,null,null,"Mannschaft",1,2,3,4,5,6,"Pkt."]
[null,null,null,null,null,null,null,null,"Dornbirn 2",3,null,3,null,null,3,{"$f":"SUM(J10:O10)","v":9}]
[" ","Mannschaft","  ","Mannschaft",null,null,null,null,"Sulz/D'birn",null,3,null,1,null,0,{"$f":"SUM(J11:O11)","v":4}]
["Spiel 1","Dornbirn 2",":","Dornbirn 3",10,":",2,null,"Höchst 4",null,0,0,null,1,null,1]
["Spiel 2","Sulz/D'birn",":","Höchst 4",7,":",2,null,"Dornbirn 3",0,null,null,1,1,null,2]
["Spiel 3","Dornbirn 2",":","Höchst 4",10,":",4]
["Sulz/D'birn","Sulz/D'birn",":","Dornbirn 3",1,":",1,null,null,"Team 1",null,"Team 2",null,"Team 3",null,"Team 4"]
["Spiel 5","Höchst 4",":","Dornbirn 3",6,":",6,null,null,"D'birn 2",null,"Su/Do",null,"Höch 4",null,"D'birn 3"]
["Spiel 6","Dornbirn 2",":","Sulz/D'birn",6,":",2,null,"1. Spiel",10,2,7,2,2,7,2,10]
[null,null,null,null,null,null,null,null,"2. Spiel",10,4,1,1,4,10,1,1]
[null,null,null,null,null,null,null,null,"3. Spiel",6,2,2,6,6,6,6,6]
[null,null,null,null,null,null,null,null,"Tore/Total",{"$f":"SUM(J17:J19)","v":26},{"$f":"SUM(K17:K19)","v":8},10,9,12,23,9,17]
[null,null,null,null,null,null,null,null,"Differenz",{"$f":"J20-K20","v":18},null,{"$f":"L20-M20","v":1},null,{"$f":"N20-O20","v":-11},null,{"$f":"P20-Q20","v":-8}]
[]
[]
[null,null,null,null,null,null,null,null,"Zeitnehmer","Patrick Köck"]
[null,null,null,null,null,null,null,null,"Kommisär","Michael eiler, Gernot Fontain"]
[]
[]
[null,null,null,null,null,null,null,null,"Endstand nach der 1. Runde",null,null,null,null,null,null,null,null,null,null,null,null,null,null,"Pkte",null,"Tore",null,"Rang"]
["Vorkommnisse","Spielzeit 2 x 6 Minuten",null,null,null,null,null,null,"Dornbirn 2","Simon Buchhäusl / Robert Rutkowski",null,null,null,null,null,null,null,null,null,null,null,null,null,9,null,26,8,1]
[null,null,null,null,null,null,null,null,"Sulz / D'birn","Jonas Hron / Benjamin Buchhäusl",null,null,null,null,null,null,null,null,null,null,null,null,null,4,null,10,9,2]
[null,null,null,null,null,null,null,null,"Dornbirn 3","Maximilian Schwendinger / Bastian Arnoldi",null,null,null,null,null,null,null,null,null,null,null,null,null,2,null,9,17,3]
[null,null,null,null,null,null,null,null,"Höchst 4","Tobias Meier / Simon Kaufmann",null,null,null,null,null,null,null,null,null,null,null,null,null,1,null,12,23,4]
[]
[]
[]
[]
[]
[]
[]
[]
[]
["Bewerb:","Vorarlberger Meisterschaft 2016",null,null,null,null,null,null,"Zwischenstand nach der 1. Runde",null,null,null,null,null,null,null,null,null,null,null,null,null,null,"Pkte",null,"Tore",null,"Rang"]
["Veranstalter:","VLRV Vorarlberg",null,null,null,null,null,null,"Dornbirn 2","Simon Buchhäusl / Robert Rutkowski",null,null,null,null,null,null,null,null,null,null,null,null,null,9,null,26,8,1]
["Ausrichter:","RV Hohenems",null,null,null,null,null,null,"Sulz / D'birn","Jonas Hron / Benjamin Buchhäusl",null,null,null,null,null,null,null,null,null,null,null,null,null,4,null,10,9,2]
["Spielort:","Radsporthalle Hohenems",null,null,null,null,null,null,"Dornbirn 3","Maximilian Schwendinger / Bastian Arnoldi",null,null,null,null,null,null,null,null,null,null,null,null,null,2,null,9,17,3]
["Termin","Samstag 09. April",null,null,null,null,null,null,"Höchst 4","Tobias Meier / Simon Kaufmann",null,null,null,null,null,null,null,null,null,null,null,null,null,1,null,12,23,4]
["Beginn:","17:00 - 18:30 Uhr"]
["Kategorie:","Junior./2. Liga",null,"2. Runde",null,null,null,null,"Mannschaft",1,2,3,4,5,6,"Pkt."]
[null,null,null,null,null,null,null,null,"Dornbirn 2",3,null,3,null,null,3,{"$f":"SUM(J49:O49)","v":9}]
[" ","Mannschaft","  ","Mannschaft",null,null,null,null,"Sulz/D'birn",null,0,null,3,null,0,{"$f":"SUM(J50:O50)","v":3}]
["Spiel 1","Dornbirn 2",":","Dornbirn 3",7,":",2,null,"Höchst 4",null,3,0,null,1,null,4]
["Spiel 2","Sulz/D'birn",":","Höchst 4",3,":",4,null,"Dornbirn 3",0,null,null,0,1,null,1]
["Spiel 3","Dornbirn 2",":","Höchst 4",7,":",2]
["Sulz/D'birn","Sulz/D'birn",":","Dornbirn 3",5,":",4,null,null,"Team 1",null,"Team 2",null,"Team 3",null,"Team 4"]
["Spiel 5","Höchst 4",":","Dornbirn 3",3,":",3,null,null,"D'birn 2",null,"Su/Do",null,"Höch 4",null,"D'birn 3"]
["Spiel 6","Dornbirn 2",":","Sulz/D'birn",7,":",4,null,"1. Spiel",7,2,3,4,4,3,2,7]
[null,null,null,null,null,null,null,null,"2. Spiel",7,2,5,4,2,7,4,5]
[null,null,null,null,null,null,null,null,"3. Spiel",7,4,4,7,3,3,3,3]
[null,null,null,null,null,null,null,null,"Tore/Total",{"$f":"SUM(J56:J58)","v":21},{"$f":"SUM(K56:K58)","v":8},12,15,9,13,9,15]
[null,null,null,null,null,null,null,null,"Differenz",{"$f":"J59-K59","v":13},null,{"$f":"L59-M59","v":-3},null,{"$f":"N59-O59","v":-4},null,{"$f":"P59-Q59","v":-6}]
[]
[]
[null,null,null,null,null,null,null,null,"Zeitnehmer","Patrick und Philipp Benzer"]
[null,null,null,null,null,null,null,null,"Kommisär","Gernot Fontain, Herbert Benzer"]
[]
[]
[null,null,null,null,null,null,null,null,"Endstand nach der 1. Runde",null,null,null,null,null,null,null,null,null,null,null,null,null,null,"Pkte",null,"Tore",null,"Rang"]
["Vorkommnisse","Spielzeit 2 x 6 Minuten",null,null,null,null,null,null,"Dornbirn 2","Simon Buchhäusl / Robert Rutkowski",null,null,null,null,null,null,null,null,null,null,null,null,null,18,null,47,16,1]
[null,null,null,null,null,null,null,null,"Sulz / D'birn","Jonas Hron / Benjamin Buchhäusl",null,null,null,null,null,null,null,null,null,null,null,null,null,7,null,22,24,2]
[null,null,null,null,null,null,null,null,"Höchst 4","Tobias Meier / Simon Kaufmann",null,null,null,null,null,null,null,null,null,null,null,null,null,5,null,21,36,3]
[null,null,null,null,null,null,null,null,"Dornbirn 3","Maximilian Schwendinger / Bastian Arnoldi",null,null,null,null,null,null,null,null,null,null,null,null,null,3,null,18,32,4]
[]
[]
[]
[]
[]
[]
[]
[]
[]
["Bewerb:","Vorarlberger Meisterschaft 2016",null,null,null,null,null,null,"Zwischenstand nach der 2. Runde",null,null,null,null,null,null,null,null,null,null,null,null,null,null,"Pkte",null,"Tore",null,"Rang"]
["Veranstalter:","VLRV Vorarlberg",null,null,null,null,null,null,"Dornbirn 2","Simon Buchhäusl / Robert Rutkowski",null,null,null,null,null,null,null,null,null,null,null,null,null,18,null,47,16,1]
["Ausrichter:","RC Höchst ",null,null,null,null,null,null,"Sulz / D'birn","Jonas Hron / Benjamin Buchhäusl",null,null,null,null,null,null,null,null,null,null,null,null,null,7,null,22,24,2]
["Spielort:","Rheinauhalle",null,null,null,null,null,null,"Höchst 4","Tobias Meier / Simon Kaufmann",null,null,null,null,null,null,null,null,null,null,null,null,null,5,null,21,36,3]
["Termin","Sonntag 17. April",null,null,null,null,null,null,"Dornbirn 3","Maximilian Schwendinger / Bastian Arnoldi",null,null,null,null,null,null,null,null,null,null,null,null,null,3,null,18,32,4]
["Beginn:","11:30 - 13:00 Uhr"]
["Kategorie:","Junior./2. Liga",null,"Finale",null,null,null,null,"Mannschaft",1,2,3,4,5,6,"Pkt."]
[null,null,null,null,null,null,null,null,"Dornbirn 2",3,null,3,null,null,3,9]
[" ","Mannschaft","  ","Mannschaft",null,null,null,null,"Sulz/D'birn",null,0,null,3,null,0,3]
["Spiel 1","Dornbirn 2",":","Dornbirn 3",6,":",0,null,"Höchst 4",null,3,0,null,0,null,3]
["Spiel 2","Sulz/D'birn",":","Höchst 4",4,":",6,null,"Dornbirn 3",0,null,null,0,3,null,3]
["Spiel 3","Dornbirn 2",":","Höchst 4",12,":",1]
["Sulz/D'birn","Sulz/D'birn",":","Dornbirn 3",8,":",3,null,null,"Team 1",null,"Team 2",null,"Team 3",null,"Team 4"]
["Spiel 5","Höchst 4",":","Dornbirn 3",3,":",4,null,null,"D'birn 2",null,"Su/Do",null,"Höch 4",null,"D'birn 3"]
["Spiel 6","Dornbirn 2",":","Sulz/D'birn",7,":",5,null,"1. Spiel",6,0,4,6,6,4,0,6]
[null,null,null,null,null,null,null,null,"2. Spiel",12,1,8,3,1,12,3,8]
[null,null,null,null,null,null,null,null,"3. Spiel",7,5,5,7,3,4,4,3]
[null,null,null,null,null,null,null,null,"Tore/Total",25,6,17,16,10,20,7,49]
[null,null,null,null,null,null,null,null,"Differenz",19,null,1,null,-10,null,-10]
[]
[]
[null,null,null,null,null,null,null,null,"Zeitnehmer","Johann Thaler"]
[null,null,null,null,null,null,null,null,"Kommisär","Markus Bröll, Patrick Schnetzer"]
[]
[]
[null,null,null,null,null,null,null,null,"Endstand LM 2016",null,null,null,null,null,null,null,null,null,null,null,null,null,null,"Pkte",null,"Tore",null,"Rang"]
["Vorkommnisse","Spielzeit 2 x 6 Minuten",null,null,null,null,null,null,"Dornbirn 2","Simon Buchhäusl / Robert Rutkowski",null,null,null,null,null,null,null,null,null,null,null,null,null,27,null,72,22,1]
[null,null,null,null,null,null,null,null,"Sulz / D'birn","Jonas Hron / Benjamin Buchhäusl",null,null,null,null,null,null,null,null,null,null,null,null,null,10,null,39,30,2]
[null,null,null,null,null,null,null,null,"Höchst 4","Tobias Meier / Simon Kaufmann",null,null,null,null,null,null,null,null,null,null,null,null,null,8,null,31,56,3]
[null,null,null,null,null,null,null,null,"Dornbirn 3","Maximilian Schwendinger / Bastian Arnoldi",null,null,null,null,null,null,null,null,null,null,null,null,null,6,null,25,49,4]

{"sheet":"Jugend_Schüler A","index":2,"n_rows":75,"n_cols":31,"rows_kept":75,"cut":false,"hidden":false,"merged":[[74,0,74,6],[74,9,74,22],[74,23,74,24],[74,27,74,28],[72,0,72,6],[72,9,72,22],[72,23,72,24],[72,27,72,28],[73,0,73,6],[73,9,73,22],[73,23,73,24],[73,27,73,28],[70,9,70,22],[70,23,70,24],[70,27,70,28],[71,0,71,6],[71,9,71,22],[71,23,71,24],[71,27,71,28],[68,9,68,22],[68,23,68,24],[68,27,68,28],[69,9,69,22],[69,23,69,24],[69,27,69,28],[64,19,64,20],[64,21,64,22],[65,9,65,28],[66,9,66,28],[67,8,67,22],[64,9,64,10],[64,11,64,12],[64,13,64,14],[64,15,64,16],[64,17,64,18],[55,9,55,10],[55,11,55,12],[55,13,55,14],[55,15,55,16],[55,17,55,18],[55,19,55,20],[55,21,55,22],[42,1,42,6],[42,9,42,22],[43,1,43,6],[43,9,43,22],[44,1,44,2],[44,3,44,6],[44,9,44,22],[40,9,40,22],[41,1,41,6],[41,9,41,22],[36,0,36,6],[37,23,37,24],[37,27,37,28],[38,1,38,6],[38,8,38,22],[45,9,45,22],[39,1,39,6],[39,9,39,22],[40,1,40,6],[36,9,36,22],[6,1,6,2],[6,3,6,6],[17,9,17,10],[17,11,17,12],[17,13,17,14],[17,15,17,16],[17,17,17,18],[17,19,17,20],[17,21,17,22],[6,9,6,22],[7,9,7,22],[0,1,0,6],[0,8,0,22],[1,1,1,6],[1,9,1,22],[2,9,2,22],[4,1,4,6],[4,9,4,22],[5,1,5,6],[5,9,5,22],[2,1,2,6],[3,1,3,6],[3,9,3,22],[26,9,26,10],[26,11,26,12],[26,13,26,14],[26,15,26,16],[26,17,26,18],[26,19,26,20],[26,21,26,22],[27,9,27,28],[33,0,33,6],[33,9,33,22],[34,0,34,6],[34,9,34,22],[35,0,35,6],[35,9,35,22],[28,9,28,28],[29,8,29,22],[30,9,30,22],[31,9,31,22],[32,9,32,22]]}
["Bewerb:","Vorarlberger Meisterschaft 2016",null,null,null,null,null,null,"Mannschaften",null,null,null,null,null,null,null,null,null,null,null,null,null,null,"Pkte",null,"Tore",null,"Rang"]
["Veranstalter:","VLRV Vorarlberg",null,null,null,null,null,null,"Dornbirn 1","Benedikt Urbanz / Simon Pinkelnig"]
["Ausrichter:","RV Dornbirn",null,null,null,null,null,null,"Dornbirn 2","Simon Tiefenthaler / Michael Feurstein"]
["Spielort:","Bunker Haselstauden",null,null,null,null,null,null,"Dornbirn 3","Philipp Schwendiger / Jonathan Gawlik"]
["Termin","Samstag 12. März",null,null,null,null,null,null,"Sulz/D'birn","Elias Kronberger / Hannes Kohler"]
["Beginn:","09:30 - 12:30 Uhr",null,null,null,null,null,null,"Höchst 1","Sven Hämmerle / Pascal Rüf"]
["Kategorie:","Jgd.-Schüler A",null,"1. Runde (Spiel 1-14)",null,null,null,null,"Höchst 2","Jonas Lampert / Leon Schobel"]
[null,null,null,null,null,null,null,null,"Höchst 3","Linus Lampert / Elias Gabriel"]
[null,"Mannschaft","  ","Mannschaft",null,null,null,null,"Mannschaft",1,2,3,4,5,6,7,8,9,10,11,12,13,14,15,16,17,18,19,20,21,"Pkt"]
["Spiel 1","Dornbirn 1",":","Dornbirn 3",0,":",5,null,"Dornbirn 1",0,null,null,null,0,null,null,null,0,null,null,null,0,null,null,null,0,null,null,null,0,{"$f":"SUM(J10:AD10)","v":0}]
["Spiel 2","Höchst 1",":","Höchst 3",0,":",5,null,"Höchst 1",null,0,null,null,null,0,null,null,null,0,null,null,null,0,null,null,null,0,null,null,0,{"$f":"SUM(J11:AD11)","v":0}]
["Spiel 3","Dornbirn 2",":","Höchst 2",0,":",7,null,"Dornbirn 2",null,null,0,null,null,null,3,null,null,null,0,null,null,3,null,null,3,null,null,0,null,9]
["Spiel 4","Sulz/D'birn",":","Dornbirn 3",0,":",5,null,"Sulz/D'birn",null,null,null,0,null,null,0,null,null,3,null,null,3,null,null,0,null,null,0,null,null,6]
["Spiel 5","Dornbirn 1",":","Höchst 3",0,":",5,null,"Höchst 2",null,null,3,null,null,3,null,null,3,null,null,3,null,null,0,null,null,null,3,null,null,15]
["Spiel 6","Höchst 1",":","Höchst 2",0,":",5,null,"Höchst 3",null,3,null,null,3,null,null,0,null,null,null,0,null,null,null,3,null,null,null,3,null,12]
["Spiel 7","Dornbirn 2",":","Sulz/D'birn",3,":",2,null,"Dornbirn 3",3,null,null,3,null,null,null,3,null,null,3,null,null,null,3,null,null,3,null,null,null,18]
["Spiel 8","Höchst 3",":","Dornbirn 3",0,":",6,null,null,"Team 1",null,"Team 2",null,"Team 3",null,"Team 4",null,"Team 5",null,"Team 6",null,"Team 7"]
["Spiel 9","Dornbirn 1",":","Höchst 2",0,":",5,null,null,"D'birn 1",null,"Höch 1",null,"D'birn 2",null,"Su/Do",null,"Höch 2",null,"Höch 3",null,"D'birn 3"]
["Spiel 10","Höchst 1",":","Sulz/D'birn",0,":",5,null,"1. Spiel",0,5,0,5,0,7,0,5,7,0,5,0,5,0]
["Spiel 11","Dornbirn 2",":","Dornbirn 3",1,":",8,null,"2. Spiel",0,5,0,5,3,2,2,3,5,0,5,0,5,0]
["Spiel 12","Höchst 2",":","Höchst 3",3,":",2,null,"3. Spiel",0,5,0,5,1,8,5,0,5,0,0,6,6,0]
["Spiel 13","Dornbirn 1",":","Sulz/D'birn",0,":",5,null,"4. Spiel",0,5,0,5,5,0,5,0,3,2,2,3,8,1]
["Spiel 14","Höchst 1",":","Dornbirn 2",0,":",5,null,"5. Spiel",0,5,0,5,5,0,1,3,1,5,3,1,5,1]
["Spiel 15","Höchst 2",":","Dornbirn 3",1,":",5,null,"6. Spiel",0,5,0,5,2,6,1,5,5,1,6,2,5,0]
["Spiel 16","Sulz/D'birn",":","Höchst 3",1,":",3]
["Spiel 17","Dornbirn 1",":","Dornbirn 2",0,":",5,null,"Tore/Total",{"$f":"SUM(J19:J25)","v":0},{"$f":"SUM(K19:K25)","v":30},0,30,16,23,14,16,26,8,21,12,34,2]
["Spiel 18","Höchst 1",":","Dornbirn 3",0,":",5,null,"Differenz",{"$f":"J26-K26","v":-30},null,{"$f":"L26-M26","v":-30},null,{"$f":"N26-O26","v":-7},null,{"$f":"P26-Q26","v":-2},null,{"$f":"R26-S26","v":18},null,{"$f":"T26-U26","v":9},null,{"$f":"V26-W26","v":32}]
["Spiel 19","Sulz/D'birn",":","Höchst 2",1,":",5,null,"Zeitnehmer","Patrick und Philipp Benzer"]
["Spiel 20","Dornbirn 2",":","Höchst 3",2,":",6,null,"Kommisär","Marco Schallert, Herbert Benzer"]
["Spiel 21","Dornbirn 1",":","Höchst 1","0:5",":","0:5",null,"Stand nach 21 Spielen",null,null,null,null,null,null,null,null,null,null,null,null,null,null,"Punkte",null,"Tore",null,"TDF","Rg."]
[null,null,null,null,null,null,null,null,"Dornbirn 3","Philipp Schwendiger / Jonathan Gawlik",null,null,null,null,null,null,null,null,null,null,null,null,null,18,null,34,2,32,"1."]
[null,null,null,null,null,null,null,null,"Höchst 2","Jonas Lampert / Leon Schobel",null,null,null,null,null,null,null,null,null,null,null,null,null,15,null,26,8,18,"2."]
["Vorkommnisse",null,null,null,null,null,null,null,"Höchst 3","Linus Lampert / Elias Gabriel",null,null,null,null,null,null,null,null,null,null,null,null,null,12,null,21,12,9,"3."]
["Höchst 1 wird vom Bewerb zurück gezogen, alle Spiele 0:5",null,null,null,null,null,null,null,"Dornbirn 2","Simon Tiefenthaler / Michael Feurstein",null,null,null,null,null,null,null,null,null,null,null,null,null,9,null,16,23,-7,"4."]
["Dornbirn 1 hat mit wechselnden Spielern gespielt, ausser Konkurenz",null,null,null,null,null,null,null,"Sulz/D'birn","Elias Kronberger / Hannes Kohler",null,null,null,null,null,null,null,null,null,null,null,null,null,6,null,14,16,-2,"5."]
["alle Spiele mit 0:5 gwertet",null,null,null,null,null,null,null,"Dornbirn 1","Benedikt Urbanz / Simon Pinkelnig",null,null,null,null,null,null,null,null,null,null,null,null,null,0,null,0,30,-30,"6."]
[null,null,null,null,null,null,null,null,"Höchst 1","Sven Hämmerle / Pascal Rüf",null,null,null,null,null,null,null,null,null,null,null,null,null,0,null,0,30,-30,"7."]
[]
["Bewerb:","Vorarlberger Meisterschaft 2016",null,null,null,null,null,null,"Stand nach 21 Spielen",null,null,null,null,null,null,null,null,null,null,null,null,null,null,"Punkte",null,"Tore",null,"TDF","Rg."]
["Veranstalter:","VLRV Vorarlberg",null,null,null,null,null,null,"Dornbirn 3","Philipp Schwendiger / Jonathan Gawlik",null,null,null,null,null,null,null,null,null,null,null,null,null,18,null,34,2,32,"1."]
["Ausrichter:","RC Höchst",null,null,null,null,null,null,"Höchst 2","Jonas Lampert / Leon Schobel",null,null,null,null,null,null,null,null,null,null,null,null,null,15,null,26,8,18,"2."]
["Spielort:","Rheinauhalle",null,null,null,null,null,null,"Höchst 3","Linus Lampert / Elias Gabriel",null,null,null,null,null,null,null,null,null,null,null,null,null,12,null,21,12,9,"3."]
["Termin","Sonntag 17. April",null,null,null,null,null,null,"Dornbirn 2","Simon Tiefenthaler / Michael Feurstein",null,null,null,null,null,null,null,null,null,null,null,null,null,9,null,16,23,-7,"4."]
["Beginn:","09:00 - 11:30 Uhr",null,null,null,null,null,null,"Sulz/D'birn","Elias Kronberger / Hannes Kohler",null,null,null,null,null,null,null,null,null,null,null,null,null,6,null,14,16,-2,"5."]
["Kategorie:","Jgd.-Schüler A",null,"Finale (Spiel 28-42)",null,null,null,null,"Dornbirn 1","Benedikt Urbanz / Simon Pinkelnig",null,null,null,null,null,null,null,null,null,null,null,null,null,0,null,0,30,-30,"6."]
[null,null,null,null,null,null,null,null,"Höchst 1","Sven Hämmerle / Pascal Rüf",null,null,null,null,null,null,null,null,null,null,null,null,null,0,null,0,30,-30,"7."]
[null,"Mannschaft","  ","Mannschaft",null,null,null,null,"Mannschaft",22,23,24,25,26,27,28,29,30,31,32,33,34,35,36,37,38,39,40,41,42,"Pkt"]
["Spiel 22","Dornbirn 1",":","Dornbirn 3",0,":",5,null,"Dornbirn 1",0,null,null,null,0,null,null,null,0,null,null,null,0,null,null,null,0,null,null,null,0,{"$f":"SUM(J48:AD48)","v":0}]
["Spiel 23","Höchst 1",":","Höchst 3",0,":",5,null,"Höchst 1",null,0,null,null,null,0,null,null,null,0,null,null,null,0,null,null,null,0,null,null,0,{"$f":"SUM(J49:AD49)","v":0}]
["Spiel 24","Dornbirn 2",":","Höchst 2",0,":",4,null,"Dornbirn 2",null,null,0,null,null,null,0,null,null,null,0,null,null,3,null,null,3,null,null,0,null,6]
["Spiel 25","Sulz/D'birn",":","Dornbirn 3",0,":",5,null,"Sulz/D'birn",null,null,null,0,null,null,3,null,null,3,null,null,3,null,null,0,null,null,0,null,null,9]
["Spiel 26","Dornbirn 1",":","Höchst 3",0,":",5,null,"Höchst 2",null,null,3,null,null,3,null,null,3,null,null,3,null,null,0,null,null,null,3,null,null,15]
["Spiel 27","Höchst 1",":","Höchst 2",0,":",5,null,"Höchst 3",null,3,null,null,3,null,null,0,null,null,null,0,null,null,null,3,null,null,null,3,null,12]
["Spiel 28","Dornbirn 2",":","Sulz/D'birn",1,":",3,null,"Dornbirn 3",3,null,null,3,null,null,null,3,null,null,3,null,null,null,3,null,null,3,null,null,null,18]
["Spiel 29","Höchst 3",":","Dornbirn 3",3,":",7,null,null,"Team 1",null,"Team 2",null,"Team 3",null,"Team 4",null,"Team 5",null,"Team 6",null,"Team 7"]
["Spiel 30","Dornbirn 1",":","Höchst 2",0,":",5,null,null,"D'birn 1",null,"Höch 1",null,"D'birn 2",null,"Su/Do",null,"Höch 2",null,"Höch 3",null,"D'birn 3"]
["Spiel 31","Höchst 1",":","Sulz/D'birn",0,":",5,null,"1. Spiel",0,5,0,5,0,4,0,5,4,0,5,0,5,0]
["Spiel 32","Dornbirn 2",":","Dornbirn 3",1,":",10,null,"2. Spiel",0,5,0,5,1,3,3,1,5,0,5,0,5,0]
["Spiel 33","Höchst 2",":","Höchst 3",3,":",1,null,"3. Spiel",0,5,0,5,1,10,5,0,5,0,3,7,7,3]
["Spiel 34","Dornbirn 1",":","Sulz/D'birn",0,":",5,null,"4. Spiel",0,5,0,5,5,0,5,0,3,1,1,3,10,1]
["Spiel 35","Höchst 1",":","Dornbirn 2",0,":",5,null,"5. Spiel",0,5,0,5,5,0,2,3,1,6,3,2,6,1]
["Spiel 36","Höchst 2",":","Dornbirn 3",1,":",6,null,"6. Spiel",0,5,0,5,1,5,1,3,3,1,5,1,5,0]
["Spiel 37","Sulz/D'birn",":","Höchst 3",2,":",3]
["Spiel 38","Dornbirn 1",":","Dornbirn 2",0,":",5,null,"Tore/Total",{"$f":"SUM(J57:J63)","v":0},{"$f":"SUM(K57:K63)","v":30},0,30,13,22,16,12,21,8,22,13,38,5]
["Spiel 39","Höchst 1",":","Dornbirn 3",0,":",5,null,"Differenz",{"$f":"J64-K64","v":-30},null,{"$f":"L64-M64","v":-30},null,{"$f":"N64-O64","v":-9},null,{"$f":"P64-Q64","v":4},null,{"$f":"R64-S64","v":13},null,{"$f":"T64-U64","v":9},null,{"$f":"V64-W64","v":33}]
["Spiel 40","Sulz/D'birn",":","Höchst 2",1,":",3,null,"Zeitnehmer","Reinhard Schneider"]
["Spiel 41","Dornbirn 2",":","Höchst 3",1,":",5,null,"Kommisär","Simon König, Florian Fischer"]
["Spiel 42","Dornbirn 1",":","Höchst 1",0,":",0,null,"Endergebnis LM 2016",null,null,null,null,null,null,null,null,null,null,null,null,null,null,"Pkte",null,"Tore",null,"Rang"]
[null,null,null,null,null,null,null,null,"Dornbirn 3","Philipp Schwendiger / Jonathan Gawlik",null,null,null,null,null,null,null,null,null,null,null,null,null,36,null,72,7,1]
[null,null,null,null,null,null,null,null,"Höchst 2","Jonas Lampert / Leon Schobel",null,null,null,null,null,null,null,null,null,null,null,null,null,30,null,47,16,2]
["Vorkommnisse",null,null,null,null,null,null,null,"Höchst 3","Linus Lampert / Elias Gabriel",null,null,null,null,null,null,null,null,null,null,null,null,null,24,null,43,25,3]
["Höchst 1 ausgefallen",null,null,null,null,null,null,null,"Sulz/D'birn","Elias Kronberger / Hannes Kohler",null,null,null,null,null,null,null,null,null,null,null,null,null,15,null,30,28,4]
["Dornbirn 1 ausgefallen",null,null,null,null,null,null,null,"Dornbirn 2","Simon Tiefenthaler / Michael Feurstein",null,null,null,null,null,null,null,null,null,null,null,null,null,15,null,29,45,5]
["Dornbirn 2 - für Simon Tiefenthaler spielt Simon Pinkelnig",null,null,null,null,null,null,null,"Dornbirn 1","Benedikt Urbanz / Simon Pinkelnig",null,null,null,null,null,null,null,null,null,null,null,null,null,0,null,0,60,6]
[null,null,null,null,null,null,null,null,"Höchst 1","Sven Hämmerle / Pascal Rüf",null,null,null,null,null,null,null,null,null,null,null,null,null,0,null,0,60,7]

{"sheet":"Schüler B","index":3,"n_rows":114,"n_cols":29,"rows_kept":114,"cut":false,"hidden":false,"merged":[[112,0,112,6],[112,9,112,22],[112,23,112,24],[113,0,113,6],[113,9,113,22],[113,23,113,24],[108,9,108,22],[108,23,108,24],[109,9,109,22],[109,23,109,24],[110,0,110,6],[110,9,110,22],[110,23,110,24],[111,0,111,6],[111,9,111,22],[111,23,111,24],[102,9,102,10],[102,11,102,12],[102,13,102,14],[102,15,102,16],[102,17,102,18],[102,19,102,20],[104,9,104,28],[105,9,105,28],[107,8,107,22],[91,25,91,26],[92,25,92,26],[93,25,93,26],[95,9,95,10],[95,11,95,12],[95,13,95,14],[95,15,95,16],[95,17,95,18],[95,19,95,20],[85,1,85,2],[85,3,85,6],[85,9,85,22],[85,23,85,24],[87,24,87,26],[88,25,88,26],[89,25,89,26],[90,25,90,26],[82,1,82,6],[82,9,82,22],[82,23,82,24],[83,1,83,6],[83,9,83,22],[83,23,83,24],[84,1,84,6],[84,9,84,22],[84,23,84,24],[79,1,79,6],[79,8,79,22],[80,1,80,6],[80,9,80,22],[80,23,80,24],[81,1,81,6],[81,9,81,22],[81,23,81,24],[74,0,74,6],[74,9,74,22],[74,23,74,24],[72,0,72,6],[72,9,72,22],[72,23,72,24],[73,0,73,6],[73,9,73,22],[73,23,73,24],[70,9,70,22],[70,23,70,24],[71,0,71,6],[71,9,71,22],[71,23,71,24],[63,19,63,20],[65,9,65,28],[66,9,66,28],[68,8,68,22],[69,9,69,22],[69,23,69,24],[63,9,63,10],[63,11,63,12],[63,13,63,14],[63,15,63,16],[63,17,63,18],[53,25,53,26],[54,25,54,26],[56,9,56,10],[56,11,56,12],[56,13,56,14],[56,15,56,16],[56,17,56,18],[56,19,56,20],[48,24,48,26],[49,25,49,26],[50,25,50,26],[51,25,51,26],[52,25,52,26],[45,1,45,6],[45,9,45,22],[45,23,45,24],[45,27,45,28],[46,1,46,2],[46,3,46,6],[46,9,46,22],[46,23,46,24],[46,27,46,28],[43,1,43,6],[43,9,43,22],[43,23,43,24],[43,27,43,28],[44,1,44,6],[44,9,44,22],[44,23,44,24],[44,27,44,28],[41,27,41,28],[42,1,42,6],[42,9,42,22],[42,23,42,24],[42,27,42,28],[34,0,34,6],[34,9,34,22],[34,23,34,24],[34,27,34,28],[15,25,15,26],[17,17,17,18],[17,19,17,20],[24,9,24,10],[24,11,24,12],[24,13,24,14],[24,15,24,16],[24,17,24,18],[24,19,24,20],[31,23,31,24],[31,27,31,28],[32,23,32,24],[32,27,32,28],[32,0,32,6],[32,9,32,22],[33,0,33,6],[33,9,33,22],[40,1,40,6],[40,8,40,22],[41,1,41,6],[41,9,41,22],[41,23,41,24],[35,0,35,6],[35,9,35,22],[35,23,35,24],[35,27,35,28],[6,1,6,6],[4,1,4,6],[4,9,4,22],[5,1,5,6],[33,23,33,24],[33,27,33,28],[30,23,30,24],[11,25,11,26],[12,25,12,26],[13,25,13,26],[14,25,14,26],[6,23,6,24],[7,23,7,24],[6,27,6,28],[30,27,30,28],[26,9,26,28],[27,9,27,28],[29,8,29,22],[30,9,30,22],[31,9,31,22],[7,27,7,28],[10,25,10,26],[1,1,1,6],[1,8,1,22],[2,9,2,22],[2,23,2,24],[2,27,2,28],[2,1,2,6],[5,9,5,22],[6,9,6,22],[17,9,17,10],[17,11,17,12],[17,13,17,14],[17,15,17,16],[7,9,7,22],[7,1,7,2],[7,3,7,6],[9,24,9,26],[3,23,3,24],[3,27,3,28],[4,23,4,24],[4,27,4,28],[5,23,5,24],[5,27,5,28],[3,1,3,6],[3,9,3,22]]}
[]
["Bewerb:","Vorarlberger Meisterschaft 2016",null,null,null,null,null,null,"Manschaften Schüler B"]
["Veranstalter:","VLRV Vorarlberg",null,null,null,null,null,null,"Dornbirn 4","Marco Eibl / Dean Rudigier"]
["Ausrichter:","RV Dornbirn",null,null,null,null,null,null,"Dornbirn 5","David Buchhäusl / Matthias Feurstein"]
["Spielort:","Bunker Haselstauden",null,null,null,null,null,null,"Hohenems","Tobias und David Prisching"]
["Termin","Samstag 12. März",null,null,null,null,null,null,"Höchst 4","Leander Piuk / Matteo Faissner"]
["Beginn:","12:30 - 16:00 Uhr",null,null,null,null,null,null,"Höchst 5","Max Mehele / Theo Prantl"]
["Kategorie:","Schüler B",null,"1. Runde",null,null,null,null,"Höchst 6","Max Schallert / Timo Lampert"]
[]
[null,"Mannschaft","  ","Mannschaft",null,null,null,null,"Mannschaft",1,2,3,4,5,6,7,8,9,10,11,12,13,14,15,"Punkte"]
["Spiel 1","Höchst 4",":","Höchst 6",3,":",2,null,"Höchst 4",3,null,null,3,null,null,null,1,null,null,null,3,null,null,3,null,{"$f":"SUM(J11:X11)","v":13}]
["Spiel 2","Dornbirn 4",":","Dornbirn 5",2,":",2,null,"Dornbirn 4",null,1,null,null,null,0,null,null,0,null,0,null,null,null,0,null,{"$f":"SUM(J12:X12)","v":1}]
["Spiel 3","Hohenems",":","Höchst 5",0,":",2,null,"Hohenems",null,null,0,null,1,null,null,null,3,null,null,0,null,1,null,null,5]
["Spiel 4","Höchst 4",":","Dornbirn 5",7,":",1,null,"Höchst 5",null,null,3,null,null,3,null,1,null,3,null,null,0,null,null,null,10]
["Spiel 5","Hohenems",":","Höchst 6",1,":",1,null,"Dornbirn 5",null,1,null,0,null,null,0,null,null,0,null,null,null,1,null,null,2]
["Spiel 6","Dornbirn 4",":","Höchst 5",0,":",5,null,"Höchst 6",0,null,null,null,1,null,3,null,null,null,3,null,3,null,null,null,10]
["Spiel 7","Dornbirn 5",":","Höchst 6",0,":",6,null,null,"Team 1",null,"Team 2",null,"Team 3",null,"Team 4",null,"Team 5",null,"Team 6"]
["Spiel 8","Höchst 4",":","Höchst 5",2,":",2,null,null,"Höch 4",null,"D'birn 4",null,"H'ems",null,"Höch 5",null,"D'birn 5",null,"Höch 6"]
["Spiel 9","Dornbirn 4",":","Hohenems",0,":",4,null,"1. Spiel",3,2,2,2,0,2,2,0,2,2,2,3]
["Spiel 10","Höchst 5",":","Dornbirn 5",5,":",2,null,"2. Spiel",7,1,0,5,1,1,5,0,1,7,1,1]
["Spiel 11","Dornbirn 4",":","Höchst 6",1,":",7,null,"3. Spiel",2,2,0,4,4,0,2,2,0,6,6,0]
["Spiel 12","Höchst 4",":","Hohenems",4,":",0,null,"4. Spiel",4,0,1,7,0,4,5,2,2,5,7,1]
["Spiel 13","Höchst 5",":","Höchst 6",1,":",2,null,"5. Spiel",4,1,1,4,1,1,1,2,1,1,2,1]
["Spiel 14","Hohenems",":","Dornbirn 5",1,":",1,null,"Tore/Total",{"$f":"SUM(J19:J23)","v":20},{"$f":"SUM(K19:K23)","v":6},4,22,6,8,15,6,6,21,18,6]
["Spiel 15","Höchst 4",":","Dornbirn 4",4,":",1,null,"Differenz",{"$f":"J24-K24","v":14},null,{"$f":"L24-M24","v":-18},null,{"$f":"N24-O24","v":-2},null,{"$f":"P24-Q24","v":9},null,{"$f":"R24-S24","v":-15},null,{"$f":"T24-U24","v":12}]
[]
[null,null,null,null,null,null,null,null,"Zeitnehmer","Maximilian Schwendinger, Bastian Arnoldi"]
[null,null,null,null,null,null,null,null,"Kommisär","Simon Buchhäusl, Robert Rutkowski, Stefan Feurstein"]
[]
[null,null,null,null,null,null,null,null,"Endstand nach der 1. Runde",null,null,null,null,null,null,null,null,null,null,null,null,null,null,"Pkte",null,"Tore",null,"Rang"]
[null,null,null,null,null,null,null,null,"Höchst 4","Leander Piuk / Matteo Faissner",null,null,null,null,null,null,null,null,null,null,null,null,null,13,null,20,6,"1."]
["Vorkommnisse","Spielzeit 2 x 5 Minuten",null,null,null,null,null,null,"Höchst 6","Max Schallert / Timo Lampert",null,null,null,null,null,null,null,null,null,null,null,null,null,10,null,18,6,"2."]
[null,null,null,null,null,null,null,null,"Höchst 5","Max Mehele / Theo Prantl",null,null,null,null,null,null,null,null,null,null,null,null,null,10,null,15,6,"3."]
[null,null,null,null,null,null,null,null,"Hohenems","Tobias und David Prisching",null,null,null,null,null,null,null,null,null,null,null,null,null,5,null,6,8,"4."]
[null,null,null,null,null,null,null,null,"Dornbirn 5","David Buchhäusl / Matthias Feurstein",null,null,null,null,null,null,null,null,null,null,null,null,null,2,null,6,21,"5."]
[null,null,null,null,null,null,null,null,"Dornbirn 4","Marco Eibl / Dean Rudigier",null,null,null,null,null,null,null,null,null,null,null,null,null,1,null,4,22,"6."]
[]
[]
[]
[]
["Bewerb:","Vorarlberger Meisterschaft 2016",null,null,null,null,null,null,"Zwischenstand nach der 2. Runde",null,null,null,null,null,null,null,null,null,null,null,null,null,null,"Pkte",null,"Tore",null,"Rang"]
["Veranstalter:","VLRV Vorarlberg",null,null,null,null,null,null,"Höchst 4","Leander Piuk / Matteo Faissner",null,null,null,null,null,null,null,null,null,null,null,null,null,13,null,20,6,"1."]
["Ausrichter:","RV Hohenems",null,null,null,null,null,null,"Höchst 6","Max Schallert / Timo Lampert",null,null,null,null,null,null,null,null,null,null,null,null,null,10,null,18,6,"2."]
["Spielort:","Radsporthalle Hohenems",null,null,null,null,null,null,"Höchst 5","Max Mehele / Theo Prantl",null,null,null,null,null,null,null,null,null,null,null,null,null,10,null,15,6,"3."]
["Termin","Samstag 09. April",null,null,null,null,null,null,"Hohenems","Tobias und David Prisching",null,null,null,null,null,null,null,null,null,null,null,null,null,5,null,6,8,"4."]
["Beginn:","11:00 - 13:30 Uhr",null,null,null,null,null,null,"Dornbirn 5","David Buchhäusl / Matthias Feurstein",null,null,null,null,null,null,null,null,null,null,null,null,null,2,null,6,21,"5."]
["Kategorie:","Schüler B",null,"2. Runde",null,null,null,null,"Dornbirn 4","Marco Eibl / Dean Rudigier",null,null,null,null,null,null,null,null,null,null,null,null,null,1,null,4,22,"6."]
[]
[null,"Mannschaft","  ","Mannschaft",null,null,null,null,"Mannschaft",1,2,3,4,5,6,7,8,9,10,11,12,13,14,15,"Punkte"]
["Spiel 1","Höchst 4",":","Höchst 6",5,":",2,null,"Höchst 4",3,null,null,3,null,null,null,3,null,null,null,3,null,null,3,null,{"$f":"SUM(J50:X50)","v":15}]
["Spiel 2","Dornbirn 4",":","Dornbirn 5",0,":",5,null,"Dornbirn 4",null,0,null,null,null,0,null,null,0,null,0,null,null,null,0,null,{"$f":"SUM(J51:X51)","v":0}]
["Spiel 3","Hohenems",":","Höchst 5",1,":",1,null,"Hohenems",null,null,1,null,0,null,null,null,3,null,null,0,null,3,null,null,7]
["Spiel 4","Höchst 4",":","Dornbirn 5",8,":",0,null,"Höchst 5",null,null,1,null,null,3,null,0,null,3,null,null,1,null,null,null,8]
["Spiel 5","Hohenems",":","Höchst 6",1,":",3,null,"Dornbirn 5",null,3,null,0,null,null,0,null,null,0,null,null,null,0,null,null,3]
["Spiel 6","Dornbirn 4",":","Höchst 5",0,":",5,null,"Höchst 6",0,null,null,null,3,null,3,null,null,null,3,null,1,null,null,null,10]
["Spiel 7","Dornbirn 5",":","Höchst 6",0,":",5,null,null,"Team 1",null,"Team 2",null,"Team 3",null,"Team 4",null,"Team 5",null,"Team 6"]
["Spiel 8","Höchst 4",":","Höchst 5",5,":",4,null,null,"Höch 4",null,"D'birn 4",null,"H'ems",null,"Höch 5",null,"D'birn 5",null,"Höch 6"]
["Spiel 9","Dornbirn 4",":","Hohenems",0,":",5,null,"1. Spiel",5,2,0,5,1,1,1,1,5,0,2,5]
["Spiel 10","Höchst 5",":","Dornbirn 5",4,":",1,null,"2. Spiel",8,0,0,5,1,3,5,0,0,8,5,0]
["Spiel 11","Dornbirn 4",":","Höchst 6",0,":",5,null,"3. Spiel",5,4,0,5,5,0,4,5,0,5,3,1]
["Spiel 12","Höchst 4",":","Hohenems",5,":",1,null,"4. Spiel",5,1,0,5,1,5,4,1,1,4,2,2]
["Spiel 13","Höchst 5",":","Höchst 6",2,":",2,null,"5. Spiel",5,0,0,5,3,1,2,2,1,3,5,0]
["Spiel 14","Hohenems",":","Dornbirn 5",3,":",1,null,"Tore/Total",{"$f":"SUM(J58:J62)","v":28},{"$f":"SUM(K58:K62)","v":7},0,25,11,10,16,9,7,20,17,8]
["Spiel 15","Höchst 4",":","Dornbirn 4",5,":",0,null,"Differenz",{"$f":"J63-K63","v":21},null,{"$f":"L63-M63","v":-25},null,{"$f":"N63-O63","v":1},null,{"$f":"P63-Q63","v":7},null,{"$f":"R63-S63","v":-13},null,{"$f":"T63-U63","v":9}]
[]
[null,null,null,null,null,null,null,null,"Zeitnehmer","Herbert Benzer, Tobias Prisching"]
[null,null,null,null,null,null,null,null,"Kommisär","Martin Lingg, Herbert Benzer"]
[]
[null,null,null,null,null,null,null,null,"Endstand nach der 2. Runde",null,null,null,null,null,null,null,null,null,null,null,null,null,null,"Pkte",null,"Tore",null,"TD","Rg."]
[null,null,null,null,null,null,null,null,"Höchst 4","Leander Piuk / Matteo Faissner",null,null,null,null,null,null,null,null,null,null,null,null,null,28,null,48,13,25,"1."]
["Vorkommnisse","Spielzeit 2 x 5 Minuten",null,null,null,null,null,null,"Höchst 6","Max Schallert / Timo Lampert",null,null,null,null,null,null,null,null,null,null,null,null,null,20,null,35,14,21,"2."]
["D'birn 4: Muss für die 2. R. verletzungsbedingt passen, alle Spiele 0:5",null,null,null,null,null,null,null,"Höchst 5","Max Mehele / Theo Prantl",null,null,null,null,null,null,null,null,null,null,null,null,null,18,null,31,15,16,"3."]
[null,null,null,null,null,null,null,null,"Hohenems","Tobias und David Prisching",null,null,null,null,null,null,null,null,null,null,null,null,null,12,null,17,18,-1,"4."]
[null,null,null,null,null,null,null,null,"Dornbirn 5","David Buchhäusl / Matthias Feurstein",null,null,null,null,null,null,null,null,null,null,null,null,null,5,null,13,41,-28,"5."]
[null,null,null,null,null,null,null,null,"Dornbirn 4","Marco Eibl / Dean Rudigier",null,null,null,null,null,null,null,null,null,null,null,null,null,1,null,4,47,-43,"6."]
[]
[]
[]
[]
["Bewerb:","Vorarlberger Meisterschaft 2016",null,null,null,null,null,null,"Zwischenstand nach der 2. Runde",null,null,null,null,null,null,null,null,null,null,null,null,null,null,"Pkte",null,"Tore",null,"Rang"]
["Veranstalter:","VLRV Vorarlberg",null,null,null,null,null,null,"Höchst 4","Leander Piuk / Matteo Faissner",null,null,null,null,null,null,null,null,null,null,null,null,null,28,null,48,13,25,"1."]
["Ausrichter:","RC Höchst",null,null,null,null,null,null,"Höchst 6","Max Schallert / Timo Lampert",null,null,null,null,null,null,null,null,null,null,null,null,null,20,null,35,14,21,"2."]
["Spielort:","Rheinauhalle",null,null,null,null,null,null,"Höchst 5","Max Mehele / Theo Prantl",null,null,null,null,null,null,null,null,null,null,null,null,null,18,null,31,15,16,"3."]
["Termin","Sonntag 17. April",null,null,null,null,null,null,"Hohenems","Tobias und David Prisching",null,null,null,null,null,null,null,null,null,null,null,null,null,12,null,17,18,-1,"4."]
["Beginn:","11:30 - 14:30 Uhr",null,null,null,null,null,null,"Dornbirn 5","David Buchhäusl / Matthias Feurstein",null,null,null,null,null,null,null,null,null,null,null,null,null,5,null,13,41,-28,"5."]
["Kategorie:","Schüler B",null,"Finale",null,null,null,null,"Dornbirn 4","Marco Eibl / Dean Rudigier",null,null,null,null,null,null,null,null,null,null,null,null,null,1,null,4,47,-43,"6."]
[]
[null,"Mannschaft","  ","Mannschaft",null,null,null,null,"Mannschaft",1,2,3,4,5,6,7,8,9,10,11,12,13,14,15,"Punkte"]
["Spiel 1","Höchst 4",":","Dornbirn 4",6,":",0,null,"Höchst 4",3,null,null,3,null,null,null,3,null,null,null,3,null,null,3,null,15]
["Spiel 2","Höchst 6",":","Höchst 5",2,":",2,null,"Höchst 6",null,1,null,null,null,3,null,null,1,null,3,null,null,null,0,null,8]
["Spiel 3","Hohenems",":","Dornbirn 5",1,":",2,null,"Hohenems",null,null,0,null,3,null,null,null,1,null,null,0,null,1,null,null,5]
["Spiel 4","Höchst 4",":","Höchst 5",4,":",1,null,"Dornbirn 5",null,null,3,null,null,0,null,0,null,0,null,null,0,null,null,null,3]
["Spiel 5","Hohenems",":","Dornbirn 4",1,":",0,null,"Höchst 5",null,1,null,0,null,null,3,null,null,3,null,null,null,1,null,null,8]
["Spiel 6","Höchst 6",":","Dornbirn 5",6,":",0,null,"Dornbirn 4",0,null,null,null,0,null,0,null,null,null,0,null,3,null,null,null,3]
["Spiel 7","Höchst 5",":","Dornbirn 4",4,":",0,null,null,"Team 1",null,"Team 2",null,"Team 3",null,"Team 4",null,"Team 5",null,"Team 6"]
["Spiel 8","Höchst 4",":","Dornbirn 5",6,":",0,null,null,"Höch 4",null,"Höch 6",null,"H'ems",null,"D'birn 5",null,"Höch 5",null,"D'birn 4"]
["Spiel 9","Höchst 6",":","Hohenems",0,":",0,null,"1. Spiel",6,0,2,2,1,2,2,1,2,2,0,6]
["Spiel 10","Dornbirn 5",":","Höchst 5",1,":",6,null,"2. Spiel",4,1,6,0,1,0,0,6,1,4,0,1]
["Spiel 11","Höchst 6",":","Dornbirn 4",7,":",1,null,"3. Spiel",6,0,0,0,0,0,0,6,4,0,0,4]
["Spiel 12","Höchst 4",":","Hohenems",2,":",0,null,"4. Spiel",2,0,7,1,0,2,1,6,6,1,1,7]
["Spiel 13","Dornbirn 5",":","Dornbirn 4",0,":",2,null,"5. Spiel",4,3,3,4,2,2,0,2,2,2,2,0]
["Spiel 14","Hohenems",":","Höchst 5",2,":",2,null,"Tore/Total",22,4,18,7,4,6,3,21,15,9,3,18]
["Spiel 15","Höchst 4",":","Höchst 6",4,":",3,null,"Differenz",18,null,11,null,-2,null,-18,null,6,null,-15]
[]
[null,null,null,null,null,null,null,null,"Zeitnehmer","Reinhard Schneider"]
[null,null,null,null,null,null,null,null,"Kommisär","Johannes Bauer, Simon Kaufmann"]
[]
[null,null,null,null,null,null,null,null,"Endstand LM 2016",null,null,null,null,null,null,null,null,null,null,null,null,null,null,"Pkte",null,"Tore",null,"TD","Rg."]
[null,null,null,null,null,null,null,null,"Höchst 4","Leander Piuk / Matteo Faissner",null,null,null,null,null,null,null,null,null,null,null,null,null,43,null,70,17,53,"1."]
["Vorkommnisse","Spielzeit 2 x 5 Minuten",null,null,null,null,null,null,"Höchst 6","Max Schallert / Timo Lampert",null,null,null,null,null,null,null,null,null,null,null,null,null,28,null,53,21,22,"2."]
[null,null,null,null,null,null,null,null,"Höchst 5","Max Mehele / Theo Prantl",null,null,null,null,null,null,null,null,null,null,null,null,null,26,null,46,24,22,"3."]
[null,null,null,null,null,null,null,null,"Hohenems","Tobias und David Prisching",null,null,null,null,null,null,null,null,null,null,null,null,null,17,null,21,24,-3,"4."]
[null,null,null,null,null,null,null,null,"Dornbirn 5","David Buchhäusl / Matthias Feurstein",null,null,null,null,null,null,null,null,null,null,null,null,null,8,null,16,62,-46,"5."]
[null,null,null,null,null,null,null,null,"Dornbirn 4","Marco Eibl / Dean Rudigier",null,null,null,null,null,null,null,null,null,null,null,null,null,4,null,7,65,-58,"6."]

{"sheet":"Schüler C","index":4,"n_rows":34,"n_cols":29,"rows_kept":34,"cut":false,"hidden":false,"merged":[[23,9,23,28],[24,9,24,28],[28,23,28,24],[7,1,7,6],[20,9,20,10],[20,11,20,12],[20,13,20,14],[20,15,20,16],[28,9,28,22],[2,1,2,6],[4,1,4,6],[4,9,4,22],[3,1,3,6],[3,9,3,22],[5,1,5,6],[5,9,5,22],[6,9,6,22],[6,1,6,6],[15,15,15,16],[33,0,33,28],[2,7,14,7],[2,8,2,22],[7,8,7,28],[8,1,8,2],[8,3,8,6],[8,15,8,16],[8,18,12,27],[9,15,9,16],[10,15,10,16],[30,23,30,24],[15,9,15,10],[15,11,15,12],[15,13,15,14],[29,0,29,6],[29,23,29,24],[29,9,29,22],[30,0,30,6],[31,0,31,6],[30,27,30,28],[31,23,31,24],[31,27,31,28]]}
[]
[]
["Bewerb:","Vorarlberger Meisterschaft 2016",null,null,null,null,null,null,"Mannschaften Schüler C"]
["Veranstalter:","VLRV Vorarlberg",null,null,null,null,null,null,"Dornbirn ","David Fritz / Mathias Maierhofer"]
["Ausrichter:","RC Höchst",null,null,null,null,null,null,"Höchst 7","Johannes Brunner / Vinzent Rettenhaber"]
["Spielort:","Rheinauhalle"]
["Termin","Sonntag 17. April"]
["Beginn:","11:30 - 14:30 Uhr"]
["Kategorie:","Schüler C",null,"Spiel 5+6",null,null,null,null,"Mannschaft",1,2,3,4,5,6,"Pkt."]
[null,null,null,null,null,null,null,null,"Dornbirn ",0,0,0,0,0,0,{"$f":"SUM(J10:O10)","v":0}]
[" ","Mannschaft","  ","Mannschaft",null,null,null,null,"Höchst 7",3,3,3,3,3,3,{"$f":"SUM(J11:O11)","v":18}]
["Spiel 1","Dornbirn ",":","Höchst 7",1,":",4]
["Spiel 2","Dornbirn ",":","Höchst 7",2,":",3]
["Spiel 3","Dornbirn ",":","Höchst 7",0,":",4]
["Spiel 4","Dornbirn ",":","Höchst 7",0,":",4,null,null,"Team 1",null,"Team 2",null,"Team 1",null,"Team 2"]
["Spiel 5","Dornbirn ",":","Höchst 7",0,":",4,null,null,"Dornbirn",null,"Höch 7",null,"Dornbirn",null,"Höch 7"]
["Spiel 6","Dornbirn ",":","Höchst 7",0,":",1,null,"1.+4. Spiel",1,4,4,1,0,4,4,0]
[null,null,null,null,null,null,null,null,"2.+5. Spiel",2,3,3,2,0,4,4,0]
[null,null,null,null,null,null,null,null,"3.+6. Spiel",0,4,4,0,0,1,1,0]
[null,null,null,null,null,null,null,null,"Tore/Total",{"$f":"SUM(J17:J19)","v":3},{"$f":"SUM(K17:K19)","v":11},11,3,0,9,9,0]
[null,null,null,null,null,null,null,null,"Differenz",{"$f":"J20-K20","v":-8},null,{"$f":"L20-M20","v":8},null,{"$f":"N20-O20","v":-9},null,{"$f":"P20-Q20","v":9}]
[]
[]
[null,null,null,null,null,null,null,null,"Zeitnehmer","Reinhard Schneider"]
[null,null,null,null,null,null,null,null,"Kommisär","Simon Kaufmann, Johannes Bauer"]
[]
[]
[null,null,null,null,null,null,null,null,"Zwischenstand nach der 2. Runde",null,null,null,null,null,null,null,null,null,null,null,null,null,null,"Pkte",null,"Tore",null,"TD","Rg."]
["Vorkommnisse","Spielzeit 2 x 5 Minuten",null,null,null,null,null,null,"Höchst 7","Johannes Brunner / Vinzent Rettenhaber",null,null,null,null,null,null,null,null,null,null,null,null,null,18,null,20,3,17,1]
["Dornbirn: Spielte mit Ersatz aus Schüler B",null,null,null,null,null,null,null,"Dornbirn ","David Fritz / Mathias Maierhofer",null,null,null,null,null,null,null,null,null,null,null,null,null,0,null,3,20,-17,2]
[]
[]
[]
["Immer in der Gruppe Schüler B, werden 2 Spiele der Gruppe C dazwischen gespielt. "]

{"sheet":"Meldungen","index":5,"n_rows":35,"n_cols":6,"rows_kept":35,"cut":false,"hidden":false,"merged":[[32,0,32,1],[24,0,24,1],[8,0,8,1],[15,0,15,1],[1,0,1,1]]}
[]
["Manschaften 1. Liga",null,"Spielt nur in der 3. Runde 1 Turnier um den LM-Titel"]
["Höchst 1","Patrick Schnetzer /Markus Bröll"]
["Höchst 2","Simon König / Florian Fischer"]
["Höchst 3","Fabian Bauer /Simon Schlegl"]
["Dornbirn 1","Lingg Martin / Daniel König"]
["Sulz / D'birn","Kevin Bachmann / Stefan Feurstein "]
[]
["Mannschaften 2. Liga / Junioren",null,"3 Runden Jeder gegen Jeden"]
["Sulz / D'birn","Jonas Hron / Benjamin Buchhäusl"]
["Höchst 4","Tobias Meier / Simon Kaufmann"]
["Dornbirn 2","Simon Buchhäusl / Robert Rutkowski"]
["Dornbirn 3","Maximilian Schwendinger / Bastian Arnoldi"]
["Sulz","No Name?","keinen Mannschaft"]
[]
["Mannschaften Jugend / Schüler A",null,"2 Runden auf 3 Spieltage aufgeteilt",null,null,"6 Teams 3 Runden"]
["Dornbirn 1","Benedikt Urbanz / Simon Pinkelnig"]
["Dornbirn 2","Simon Tiefenthaler / Michael Feurstein","1. Runde 14 Spiele"]
["Dornbirn 3","Philipp Schwendiger / Jonathan Gawlik","2. Runde 14 Spiele"]
["Sulz/D'birn","Elias Kronberger / Hannes Kohler","3. Runde 14 Spiele"]
["Höchst 1","Sven Hämmerle / Pascal Rüf","Mannschaft wurde am 10.3. zurück gezogen"]
["Höchst 2","Jonas Lampert / Leon Schobel"]
["Höchst 3","Linus Lampert / Elias Gabriel"]
[]
["Mannschaften Schüler B",null,"3 Runden Jeder gegen Jeden"]
["Dornbirn 4","Marco Eibl / Dean Rudigier"]
["Dornbirn 5","David Buchhäusl / Matthias Feurstein"]
["Hohenems","Tobias und David Prisching"]
["Höchst 4","Leander Piuk / Matteo Faissner"]
["Höchst 5","Max Mehele / Theo Prantl"]
["Höchst 6","Max Schallert / Timo Lampert"]
[]
["Mannschaften Schüler C",null,"Spielen jeweils 2 Spiele gegeneinander"]
["Höchst 7","Johannes Brunner / Vinzent Rettenhaber","zeitgleich mit den Schüler B dazwischen drin"]
["Dornbirn ","David Fritz / Mathias Maierhofer"]

{"sheet":"gelb_rote Karten","index":6,"n_rows":2,"n_cols":1,"rows_kept":2,"cut":false,"hidden":false,"merged":[]}
[]
["Gelb/rote Karten LM "]